fUST/lending_fUST_20250226
["ID","MTS","AMOUNT","RATE_DAILY","PERIOD"]
[354444212,1740499846679,-500.0,0.00034463,7]
[354444213,1740499846688,-500.0,0.00034463,7]
[354444214,1740499846698,-785.45102281,0.00034463,7]
[354444215,1740499846708,-500.0,0.00034463,7]
[354444216,1740499846718,-785.45102281,0.00034463,7]
[354444217,1740499846728,-500.0,0.00034463,7]
[354444218,1740499846739,-785.45102281,0.00034463,7]
[354444219,1740499846749,-500.0,0.00034463,7]
[354444220,1740499846760,-500.0,0.00034463,7]
[354444221,1740499846769,-785.45102281,0.00034463,7]
[354444222,1740499846779,-785.45102281,0.00034463,7]
[354444223,1740499846789,-593.1246585,0.00034463,7]
[354444224,1740499846799,-785.45102281,0.00034463,7]
[354444225,1740499846810,-500.0,0.00034463,7]
[354444226,1740499846821,-500.0,0.00034463,7]
[354444227,1740499846832,-785.45102281,0.00034463,7]
[354444228,1740499846842,-500.0,0.00034463,7]
[354444229,1740499846853,-785.45102281,0.00034463,7]
[354444230,1740499846863,-176.86578797,0.00034463,7]
[354444241,1740500696226,1512.20603,0.000157,120]
[354444323,1740501033238,-2300.63784516,0.0001485,2]
[354444324,1740501033466,-2699.36215484,0.0001485,2]
[354444325,1740501033489,-459.35639596,0.00015,2]
[354444326,1740501033502,-1772.34514989,0.00016,2]
[354444327,1740501033513,-300.0,0.00018899,2]
[354444328,1740501033524,-4509.77797348,0.000189,2]
[354444329,1740501033535,-420.0,0.00020602,2]
[354444330,1740501033545,-152.1,0.00020902,2]
[354444331,1740501033556,-19641.8438551,0.00020911,2]
[354444332,1740501033567,-587.0,0.00022459,2]
[354444333,1740501033577,-152.1,0.00022836,2]
[354444334,1740501033587,-152.1,0.00022836,2]
[354444335,1740501033597,-152.1,0.00022836,2]
[354444336,1740501033608,-24900.0,0.00022846,2]
[354444337,1740501033618,-255.75021011,0.000229,2]
[354444338,1740501033628,-9699.11493713,0.00023,2]
[354444339,1740501033638,-3755.7745594,0.00023666,24]
[354444340,1740501033651,-17575.06097972,0.00023666,24]
[354444341,1740501033661,-961.77948782,0.00023766,2]
[354444342,1740501033672,-4509.77797348,0.000239,2]
[354444343,1740501033681,-791.06504231,0.000239,3]
[354444344,1740501033691,-19603.87691479,0.00024019,2]
[354444345,1740501033702,-160.0,0.00024055,2]
[354444346,1740501033712,-791.06504211,0.00025141,4]
[354444347,1740501033722,-813.9533619,0.00025493,2]
[354444348,1740501033733,-288.45660739,0.00025781,2]
[354444349,1740501033747,-791.06504211,0.00026383,4]
[354444350,1740501033757,-156.78,0.000266,31]
[354444351,1740501033768,-435.59,0.00026839,3]
[354444352,1740501033778,-217.79,0.00026839,3]
[354444353,1740501033788,-653.4,0.00026839,3]
[354444354,1740501033798,-255.75021008,0.00027329,2]
[354444355,1740501033808,-791.06504211,0.00027624,4]
[354444356,1740501033818,-232.098212,0.000279,2]
[354444357,1740501033828,-871.18,0.00028209,3]
[354444358,1740501033838,-435.58,0.00028209,3]
[354444359,1740501033848,-697.64875987,0.00028866,5]
[354444360,1740501033860,-93.41628224,0.00028866,5]
[354444361,1740501033870,-4509.77797348,0.000289,2]
[354444362,1740501033880,-4237.68549007,0.00029,10]
[354444363,1740501033889,-500.0,0.0002956,5]
[354444364,1740501033903,-500.0,0.0002956,5]
[354444365,1740501033912,-427.30725142,0.0002956,5]
[354444366,1740501033933,-188.08018095,0.0002956,5]
[354444367,1740501033943,-500.0,0.00029563,5]
[354444368,1740501033954,-150.0,0.00029563,3]
[354444369,1740501033963,-500.0,0.00029563,5]
[354444370,1740501033973,-151.71981893,0.00029867,3]
[354444388,1740501038360,-329.68276536,0.00029867,3]
[354444389,1740501038371,-496.3407641,0.00029867,3]
[354444390,1740501038425,-20838.16159841,0.00029867,3]
[354444391,1740501038435,-160.0,0.00029867,3]
[354444392,1740501038444,-212.85080242,0.00029877,2]
[354444393,1740501038453,-500.0,0.0002988,2]
[354444394,1740501038463,-500.0,0.0002988,5]
[354444395,1740501038472,-151.0,0.00029925,2]
[354444396,1740501038481,-316.0,0.0003,2]
[354444397,1740501038491,-160.0,0.0003,10]
[354444401,1740501038666,-200.0,0.0003,30]
[354444402,1740501038683,-500.0,0.0003,2]
[354444403,1740501038694,-791.06504211,0.00030107,5]
[354444404,1740501038704,-250.0,0.0003011,3]
[354444405,1740501038714,-277.76646851,0.00030473,2]
[354444406,1740501038724,-294.5553053,0.00030658,3]
[354444407,1740501038735,-500.0,0.00030757,5]
[354444408,1740501038746,-1226.6667408,0.00031055,2]
[354444409,1740501038756,-383.06529666,0.00031175,5]
[354444410,1740501038766,-500.0,0.00031175,5]
[354444411,1740501038776,-21815.9049468,0.00031214,3]
[354444412,1740501038785,-21330.8355391,0.00031225,68]
[354444413,1740501038795,-791.06504211,0.00031348,6]
[354444414,1740501038804,-4237.68549007,0.00031665,3]
[354444415,1740501038813,-500.0,0.00031675,5]
[354444416,1740501038823,-255.75021008,0.00031757,2]
[354444417,1740501038833,-160.0,0.00032584,3]
[354444418,1740501038842,-791.06504211,0.0003259,6]
[354444419,1740501038852,-151.1363062,0.00032811,5]
[354444420,1740501038862,-160.93276011,0.00032973,5]
[354444421,1740501038871,-538.22414118,0.00032973,5]
[354444422,1740501038881,-527.52432232,0.00032973,5]
[354444423,1740501038891,-500.0,0.00032973,5]
[354444424,1740501038905,-167.21,0.0003298,120]
[354444425,1740501038915,-21815.9049468,0.0003298,3]
[354444426,1740501038925,-38900.02819138,0.0003299,2]
[354444427,1740501038935,-150.5,0.0003299,120]
[354444428,1740501038947,-500.0,0.00032999,2]
[354444429,1740501038956,-500.0,0.00032999,7]
[354444430,1740501038966,-157.77,0.00032999,7]
[354444431,1740501038976,-500.0,0.00032999,7]
[354444432,1740501038987,-500.0,0.00032999,7]
[354444433,1740501038999,-500.0,0.00032999,7]
[354444434,1740501039008,-500.0,0.00032999,7]
[354444435,1740501039018,-500.0,0.00032999,2]
[354444436,1740501039027,-500.0,0.00032999,7]
[354444437,1740501039037,-500.0,0.00032999,7]
[354444438,1740501039046,-500.0,0.00032999,7]
[354444439,1740501039056,-500.0,0.00032999,7]
[354444440,1740501039066,-500.0,0.00032999,2]
[354444441,1740501039077,-500.0,0.00032999,7]
[354444442,1740501039086,-500.0,0.00032999,7]
[354444443,1740501039095,-500.0,0.00032999,7]
[354444444,1740501039105,-500.0,0.00032999,7]
[354444445,1740501039114,-298.64588064,0.00032999,7]
[354444446,1740501039124,-500.0,0.00032999,2]
[354444447,1740501039133,-500.0,0.00032999,7]
[354444448,1740501039142,-500.0,0.00032999,7]
[354444449,1740501039152,-500.0,0.00032999,2]
[354444450,1740501039162,-500.0,0.00032999,7]
[354444451,1740501039171,-500.0,0.00032999,7]
[354444452,1740501039182,-500.0,0.00032999,7]
[354444453,1740501039192,-500.0,0.00032999,7]
[354444454,1740501039201,-500.0,0.00032999,2]
[354444455,1740501039211,-501.81246585,0.00032999,7]
[354444456,1740501039222,-500.0,0.00032999,7]
[354444457,1740501039232,-500.0,0.00032999,7]
[354444458,1740501039241,-500.0,0.00032999,7]
[354444459,1740501039252,-500.0,0.00032999,7]
[354444460,1740501039262,-500.0,0.00032999,7]
[354444461,1740501039272,-500.0,0.00032999,7]
[354444462,1740501039282,-500.0,0.00032999,7]
[354444463,1740501039291,-265.0,0.00032999,2]
[354444464,1740501039301,-500.0,0.00032999,7]
[354444465,1740501039311,-185.77564565,0.00032999,7]
[354444466,1740501039320,-500.0,0.00032999,7]
[354444467,1740501039329,-500.0,0.00032999,2]
[354444468,1740501039339,-500.0,0.00032999,7]
[354444469,1740501039349,-500.0,0.00032999,7]
[354444470,1740501039360,-500.0,0.00032999,2]
[354444471,1740501039370,-500.0,0.00032999,7]
[354444472,1740501039379,-500.0,0.00032999,2]
[354444473,1740501039389,-500.0,0.00032999,7]
[354444474,1740501039399,-195.0469761,0.00032999,7]
[354444475,1740501039408,-500.0,0.00032999,7]
[354444476,1740501039418,-500.0,0.00032999,2]
[354444477,1740501039428,-500.0,0.00032999,7]
[354444478,1740501039438,-500.0,0.00032999,7]
[354444479,1740501039449,-500.0,0.00032999,7]
[354444480,1740501039459,-500.0,0.00032999,7]
[354444481,1740501039469,-500.0,0.00032999,7]
[354444482,1740501039479,-500.0,0.00032999,7]
[354444483,1740501039489,-500.0,0.00032999,7]
[354444484,1740501039502,-500.0,0.00032999,7]
[354444485,1740501039512,-500.0,0.00032999,7]
[354444486,1740501039521,-500.0,0.00032999,7]
[354444487,1740501039532,-500.0,0.00032999,7]
[354444488,1740501039542,-500.0,0.00032999,7]
[354444489,1740501039552,-500.0,0.00032999,7]
[354444490,1740501039562,-500.0,0.00032999,7]
[354444491,1740501039572,-500.0,0.00032999,7]
[354444492,1740501039582,-500.0,0.00032999,7]
[354444493,1740501039591,-500.0,0.00032999,7]
[354444494,1740501039600,-500.0,0.00032999,7]
[354444495,1740501039610,-203.83713873,0.00032999,7]
[354444496,1740501039619,-500.0,0.00032999,7]
[354444497,1740501039628,-500.0,0.00032999,7]
[354444498,1740501039638,-500.0,0.00032999,7]
[354444499,1740501039647,-500.0,0.00032999,7]
[354444500,1740501039657,-500.0,0.00032999,7]
[354444501,1740501039667,-316.0,0.00033,2]
[354444502,1740501039676,-31814.88917604,0.00033,30]
[354444503,1740501039689,-14369.30965302,0.00033,30]
[354444504,1740501039701,-6185.45619389,0.00033,30]
[354444505,1740501039716,-86986.88186057,0.00033,30]
[354444525,1740501040620,-15053.12311648,0.00033,30]
[354444526,1740501040630,-250.0,0.00033251,5]
[354444528,1740501040640,-500.0,0.00033251,5]
[354444529,1740501040649,-500.56966165,0.00033251,5]
[354444531,1740501040659,-500.0,0.00033251,5]
[354444533,1740501040669,-500.0,0.00033251,5]
[354444534,1740501040679,-500.0,0.00033251,5]
[354444536,1740501040689,-500.0,0.00033251,5]
[354444537,1740501040699,-400.17803338,0.00033251,5]
[354444538,1740501040708,-386.11938022,0.00033251,5]
[354444539,1740501040718,-500.0,0.00033251,5]
[354444540,1740501040727,-251.01303338,0.00033251,5]
[354444541,1740501040737,-791.06504211,0.00033831,6]
[354444542,1740501040750,-160.0,0.00033999,7]
[354444543,1740501040760,-29159.69919806,0.00034,7]
[354444544,1740501040770,-4237.68549007,0.00034,7]
[354444545,1740501040779,-160.0,0.00034,7]
[354444546,1740501040789,-476.0,0.00034,40]
[354444547,1740501040799,-778.385,0.00034086,37]
[354444548,1740501040810,-765.34523088,0.00034463,30]
[354444549,1740501040819,-18441.89620399,0.0003499,30]
[354444550,1740501040829,-1139.85075842,0.00035,120]
[354444551,1740501040838,-200.0,0.00035,120]
[354444552,1740501040847,-515.60521562,0.00035039,5]
[354444553,1740501040857,-393.65955209,0.00035039,5]
[354444554,1740501040866,-500.32403874,0.00035042,5]
[354444555,1740501040876,-1000.0,0.00035042,5]
[354444556,1740501040885,-791.06504211,0.00035072,7]
[354444557,1740501040895,-21815.9049468,0.00035349,3]
[354444558,1740501040909,-1000.0,0.00035359,2]
[354444559,1740501040919,-1081.39287826,0.00035359,5]
[354444560,1740501040929,-974.21,0.00035616,30]
[354444561,1740501040938,-974.21,0.0003589,31]
[354444562,1740501040949,-316.0,0.00036,2]
[354444563,1740501040959,-974.21,0.00036164,32]
[354444564,1740501040969,-255.75021008,0.00036186,2]
[354444565,1740501040979,-1000.0,0.00036237,5]
[354444566,1740501040990,-791.06504211,0.00036314,7]
[354444567,1740501041002,-974.21,0.00036438,33]
[354444568,1740501041012,-500.0,0.00036473,5]
[354444569,1740501041022,-500.0,0.00036473,5]
[354444570,1740501041043,-500.0,0.00036473,5]
[354444571,1740501041056,-500.0,0.00036473,5]
[354444572,1740501041066,-500.0,0.00036473,5]
[354444573,1740501041077,-500.0,0.00036473,5]
[354444574,1740501041087,-500.0,0.00036473,5]
[354444575,1740501041098,-500.0,0.00036473,5]
[354444576,1740501041109,-500.0,0.00036473,5]
[354444577,1740501041119,-154409.66,0.000365,30]
[354444578,1740501041132,-974.21,0.00036712,34]
[354444579,1740501041143,-974.21,0.00036986,35]
[354444580,1740501041156,-7632.89306678,0.00037,60]
[354444581,1740501041168,-1000.0,0.00037154,5]
[354444582,1740501041180,-974.21,0.0003726,36]
[354444583,1740501041190,-974.21,0.00037534,37]
[354444584,1740501041203,-791.06504211,0.00037555,7]
[354444585,1740501041215,-974.21,0.00037808,38]
[354444586,1740501041398,-175.14282837,0.00037949,2]
[354444587,1740501041409,-974.21,0.00038082,39]
[354444588,1740501041419,-974.21,0.00038356,40]
[354444589,1740501041429,-1000.0,0.00038452,5]
[354444590,1740501041438,-974.21,0.0003863,41]
[354444591,1740501041448,-1000.0,0.00038731,5]
[354444592,1740501041458,-1000.0,0.00038731,5]
[354444593,1740501041468,-1000.0,0.00038731,5]
[354444594,1740501041478,-1000.0,0.00038731,5]
[354444595,1740501041489,-500.88910816,0.00038731,5]
[354444596,1740501041502,-21330.8355391,0.00038783,113]
[354444597,1740501041511,-791.06504211,0.00038797,8]
[354444598,1740501041521,-974.21,0.00038904,42]
[354444599,1740501041531,-5237.474249,0.00039,120]
[354444600,1740501041540,-154409.66,0.00039,30]
[354444601,1740501041550,-974.21,0.00039178,43]
[354444602,1740501041560,-201.22562,0.000393,120]
[354444603,1740501041569,-974.21,0.00039452,44]
[354444604,1740501041579,-1444.0234568,0.00039568,7]
[354444605,1740501041588,-974.21,0.00039726,45]
[354444606,1740501041598,-175.79588059,0.00039797,2]
[354444607,1740501041607,-21815.9049468,0.00039863,4]
[354444608,1740501041617,-500.0,0.00039873,5]
[354444609,1740501041626,-500.0,0.00039873,5]
[354444610,1740501041635,-500.0,0.00039873,5]
[354444611,1740501041644,-500.0,0.00039873,5]
[354444612,1740501041654,-256.97682347,0.00039873,5]
[354444613,1740501041666,-500.0,0.00039873,5]
[354444614,1740501041675,-500.0,0.00039873,5]
[354444615,1740501041684,-500.0,0.00039873,5]
[354444616,1740501041693,-500.0,0.00039873,5]
[354444617,1740501041703,-43631.8098935,0.00039879,4]
[354444618,1740501041712,-228.42,0.0003988,120]
[354444619,1740501041722,-150.5,0.0003989,120]
[354444620,1740501041731,-65447.7148403,0.0003989,4]
[354444621,1740501041740,-4237.68549007,0.000399,30]
[354444622,1740501041752,-500.0,0.00039973,5]
[354444623,1740501041762,-366.79013869,0.00039973,5]
[354444624,1740501041771,-563.71623255,0.00039973,5]
[354444625,1740501041781,-500.0,0.00039973,5]
[354444626,1740501041791,-500.0,0.00039973,5]
[354444627,1740501041800,-190.3072583,0.00039973,5]
[354444628,1740501041810,-500.0,0.00039973,5]
[354444629,1740501041819,-500.0,0.00039973,5]
[354444630,1740501041828,-500.0,0.00039973,5]
[354444631,1740501041838,-974.21,0.0004,46]
[354444632,1740501041847,-151.0,0.0004,18]
[354444633,1740501041856,-226.19805172,0.0004,120]
[354444634,1740501041866,-126143.79450353,0.0004,120]
[354444635,1740501041875,-10838.99725892,0.0004,120]
[354444636,1740501041884,-1380.618799,0.0004,120]
[354444637,1740501041894,-791.06504211,0.00040038,8]
[354444638,1740501041904,-974.21,0.00040273,47]
[354444639,1740501041915,-2000.0,0.000405,32]
[354444640,1740501041925,-974.21,0.00040547,48]
[354444641,1740501041935,-255.75021008,0.00040614,28]
[354444642,1740501041945,-500.0,0.00040667,5]
[354444643,1740501041954,-500.0,0.00040667,5]
[354444644,1740501041964,-500.0,0.00040777,5]
[354444645,1740501041973,-151.0,0.000408,11]
[354444646,1740501041985,-151.0,0.000408,16]
[354444647,1740501041995,-974.21,0.00040821,49]
[354444648,1740501042007,-400.0,0.00041,5]
[354444649,1740501042017,-151.0,0.00041,12]
[354444650,1740501042027,-2000.0,0.00041,32]
[354444651,1740501042036,-21815.9049468,0.00041085,4]
[354444652,1740501042046,-974.21,0.00041095,50]
[354444653,1740501042055,-794.86,0.00041095,120]
[354444654,1740501042065,-794.86,0.00041095,120]
[354444655,1740501042075,-794.86,0.00041095,120]
[354444656,1740501042084,-794.86,0.00041095,120]
[354444657,1740501042093,-794.86,0.00041095,120]
[354444658,1740501042103,-794.86,0.00041095,120]
[354444659,1740501042112,-794.86,0.00041095,120]
[354444660,1740501042121,-794.86,0.00041095,120]
[354444661,1740501042130,-794.86,0.00041095,120]
[354444662,1740501042139,-794.86,0.00041095,120]
[354444663,1740501042149,-794.86,0.00041095,120]
[354444664,1740501042158,-794.86,0.00041095,120]
[354444665,1740501042168,-794.86,0.00041095,120]
[354444666,1740501042177,-794.86,0.00041095,120]
[354444667,1740501042187,-794.86,0.00041095,120]
[354444668,1740501042197,-794.86,0.00041095,120]
[354444669,1740501042206,-794.86,0.00041095,120]
[354444670,1740501042215,-794.86,0.00041095,120]
[354444671,1740501042225,-794.86,0.00041095,120]
[354444672,1740501042234,-794.86,0.00041095,120]
[354444673,1740501042243,-794.86,0.00041095,120]
[354444674,1740501042254,-794.86,0.00041095,120]
[354444675,1740501042263,-794.86,0.00041095,120]
[354444676,1740501042272,-795.06071896,0.00041095,120]
[354444677,1740501042281,-4237.68549007,0.00041095,120]
[354444678,1740501042290,-151.0,0.000411,20]
[354444679,1740501042300,-4237.68549007,0.000411,120]
[354444680,1740501042309,-154409.66,0.000411,30]
[354444681,1740501042319,-791.06504211,0.00041279,9]
[354444682,1740501042329,-151.0,0.000413,18]
[354444683,1740501042339,-974.21,0.00041369,51]
[354444684,1740501042348,-1171.52007771,0.0004138,30]
[354444685,1740501042357,-3000.0,0.00041459,2]
[354444686,1740501042366,-175.79588059,0.0004148,2]
[354444687,1740501042376,-6574.90236457,0.0004148,2]
[354444688,1740501042385,-21815.9049468,0.0004149,4]
[354444689,1740501042395,-2000.0,0.000415,32]
[354444690,1740501042404,-1000.0,0.00041573,10]
[354444691,1740501042413,-36256.85823893,0.0004159,5]
[354444692,1740501042422,-55436.15989686,0.0004159,5]
[354444693,1740501042431,-2000.0,0.00041591,30]
[354444694,1740501042440,-2000.0,0.00041591,30]
[354444695,1740501042450,-848.0,0.00041591,30]
[354444696,1740501042459,-2000.0,0.00041591,30]
[354444697,1740501042468,-2000.0,0.00041591,30]
[354444698,1740501042477,-848.0,0.00041591,30]
[354444699,1740501042486,-2000.0,0.00041591,30]
[354444700,1740501042496,-2000.0,0.00041591,30]
[354444701,1740501042506,-848.0,0.00041591,30]
[354444702,1740501042516,-830113.0,0.00041591,30]
[354444703,1740501042525,-163261.3906078,0.00041591,35]
[354444704,1740501042535,-250.0,0.00041591,10]
[354444705,1740501042545,-260.88904,0.00041591,10]
[354444706,1740501042554,-9419.89733172,0.00041591,2]
[354444707,1740501042564,-325794.37510437,0.00041591,7]
[354444708,1740501042573,-34336.95632458,0.00041591,2]
[354444709,1740501042583,-3050.79066193,0.00041591,2]
[354444710,1740501042592,-90119.85067539,0.00041591,2]
[354444711,1740501042602,-66141.13504271,0.00041591,120]
[354444712,1740501042611,-251.87329101,0.00041591,2]
[354444713,1740501042621,-234.09663534,0.00041591,10]
[354444714,1740501042630,-293.47940121,0.00041591,2]
[354444715,1740501042639,-812.86587139,0.00041591,2]
[354444716,1740501042649,-1640.85235381,0.00041591,2]
[354444717,1740501042658,-323.26482693,0.00041591,2]
[354444718,1740501042667,-288.50597385,0.00041591,2]
[354444719,1740501042676,-1195.55448012,0.00041591,2]
[354444720,1740501042686,-51112.3333737,0.00041591,2]
[354444721,1740501042695,-355.18812482,0.00041591,2]
[354444722,1740501042704,-4157.34042716,0.00041591,2]
[354444723,1740501042714,-154.65482288,0.00041591,2]
[354444724,1740501042723,-10186.31352409,0.00041591,2]
[354444725,1740501042732,-3006.08337493,0.00041591,2]
[354444726,1740501042741,-6221.53900062,0.00041591,2]
[354444727,1740501042753,-155.7618212,0.00041591,2]
[354444728,1740501042762,-520.45518104,0.00041591,2]
[354444729,1740501042772,-1694.98361273,0.00041591,2]
[354444730,1740501042781,-440.99385897,0.00041591,2]
[354444731,1740501042791,-1780.69585008,0.00041591,30]
[354444732,1740501042801,-1847.84284311,0.00041591,2]
[354444733,1740501042811,-200.0,0.00041591,10]
[354444734,1740501042822,-13624.62099372,0.00041591,2]
[354444735,1740501042832,-501.89752375,0.00041591,2]
[354444736,1740501042842,-151.18713376,0.00041591,2]
[354444737,1740501042853,-1382.13770139,0.00041591,2]
[354444738,1740501042863,-300.00723537,0.00041591,2]
[354444739,1740501042873,-580.63546965,0.00041591,2]
[354444740,1740501042883,-5826.23995912,0.00041591,2]
[354444741,1740501042892,-15674.96776758,0.00041591,2]
[354444742,1740501042903,-1516.46526003,0.00041591,120]
[354444743,1740501042915,-2000.0,0.00041591,2]
[354444744,1740501042925,-9059.06110012,0.00041591,2]
[354444745,1740501042934,-501.96176886,0.00041591,2]
[354444746,1740501042957,-449.999999,0.00041591,120]
[354444747,1740501042966,-882.76686012,0.00041591,2]
[354444748,1740501042976,-3915.80964882,0.00041591,2]
[354444749,1740501042990,-1043.32638892,0.0004162,2]
[354444750,1740501043003,-974.21,0.00041643,52]
[354444753,1740501043012,-11664.86883219,0.000419,120]
[354444809,1740501043569,-340.33660288,0.000419,120]
[354444810,1740501043591,-312.59798754,0.000419,120]
[354444811,1740501043607,-2208.98598956,0.000419,120]
[354444839,1740501044268,-245.0,0.00033251,2]
[354444841,1740501044284,-658.88375293,0.00035006,2]
[354444937,1740501048148,-4341.11624707,0.00035006,2]
[354444939,1740501048158,-245.0,0.00036251,2]
[354444941,1740501048168,-245.0,0.00039251,2]
[354444943,1740501048179,-157532.46573983,0.000419,120]
[354444945,1740501048189,-974.35730351,0.00041917,53]
[354444947,1740501048200,-849.87191823,0.00041952,10]
[354444949,1740501048210,-943.364172,0.00041952,10]
[354444951,1740501048221,-1000.0,0.00041952,10]
[354444953,1740501048231,-1000.0,0.00041952,10]
[354444955,1740501048242,-1000.0,0.00041952,10]
[354444957,1740501048253,-1097.46128311,0.00041952,10]
[354444959,1740501048264,-1000.0,0.00041952,10]
[354444961,1740501048274,-510.72161371,0.00041952,10]
[354444963,1740501048286,-396.58191561,0.0004198,2]
[354444965,1740501048297,-2799.66,0.00042,32]
[354444967,1740501048307,-3343.32638892,0.00042,2]
[354444969,1740501048318,-4237.68549007,0.00042,120]
[354444971,1740501048328,-2000.0,0.00042121,10]
[354444973,1740501048338,-1707.39344032,0.000424,120]
[354444975,1740501048348,-2000.0,0.000425,32]
[354444977,1740501048360,-791.06504211,0.00042521,9]
[354444979,1740501048371,-3000.0,0.00042668,10]
[354444981,1740501048382,-2000.0,0.00043,48]
[354444983,1740501048394,-4237.68549007,0.00043,10]
[354444985,1740501048405,-198.1564982,0.00043473,10]
[354444987,1740501048416,-154409.66,0.000435,30]
[354444989,1740501048426,-791.06504211,0.00043762,9]
[354444991,1740501048437,-6574.90236452,0.00044016,2]
[354444993,1740501048447,-500.0,0.00044386,2]
[354444995,1740501048458,-500.0,0.00044486,2]
[354444998,1740501048469,-5000.0,0.00044568,14]
[354445000,1740501048479,-500.0,0.00044586,2]
[354445002,1740501048489,-500.0,0.00044686,2]
[354445004,1740501048498,-150.0,0.00044773,10]
[354445005,1740501048510,-500.0,0.00044786,2]
[354445006,1740501048520,-500.0,0.00044886,2]
[354445007,1740501048530,-15423.01628109,0.000449,2]
[354445008,1740501048541,-500.0,0.00044986,2]
[354445009,1740501048551,-50000.0,0.00045,45]
[354445010,1740501048561,-10000.0,0.00045,100]
[354445011,1740501048571,-500.0,0.00045,12]
[354445012,1740501048581,-844.14945046,0.00045,20]
[354445013,1740501048591,-151.0,0.00045,90]
[354445014,1740501048601,-1000.0,0.00045,30]
[354445016,1740501048611,-1000.0,0.00045,30]
[354445018,1740501048622,-1000.0,0.00045,30]
[354445020,1740501048632,-1000.0,0.00045,30]
[354445022,1740501048642,-1000.0,0.00045,30]
[354445024,1740501048652,-1000.0,0.00045,120]
[354445026,1740501048662,-1000.0,0.00045,30]
[354445028,1740501048672,-185.0,0.00045,90]
[354445030,1740501048682,-791.06504211,0.00045003,10]
[354445032,1740501048692,-311.0,0.0004503,72]
[354445034,1740501048702,-255.75021008,0.00045043,28]
[354445036,1740501048712,-1500.0,0.00045061,10]
[354445038,1740501048722,-500.0,0.00045086,2]
[354445040,1740501048732,-500.0,0.00045186,2]
[354445042,1740501048742,-963.0,0.0004521,30]
[354445044,1740501048753,-500.0,0.0004521,30]
[354445046,1740501048767,-164.55947436,0.0004521,30]
[354445048,1740501048778,-205.11463303,0.0004521,30]
[354445050,1740501048787,-150.29,0.0004521,30]
[354445052,1740501048797,-500.0,0.0004521,30]
[354445054,1740501048806,-500.0,0.0004521,30]
[354445056,1740501048817,-3600.0,0.0004521,30]
[354445058,1740501048827,-500.0,0.0004521,30]
[354445060,1740501048837,-150.29,0.0004521,30]
[354445063,1740501048847,-150.29,0.0004521,30]
[354445065,1740501048857,-500.0,0.0004521,30]
[354445067,1740501048867,-500.0,0.0004521,30]
[354445069,1740501048876,-150.29,0.0004521,2]
[354445071,1740501048887,-500.0,0.0004521,30]
[354445073,1740501048896,-150.29,0.0004521,2]
[354445075,1740501048909,-150.29,0.0004521,30]
[354445077,1740501048919,-500.0,0.0004521,30]
[354445079,1740501048928,-500.0,0.0004521,30]
[354445081,1740501048938,-500.0,0.0004521,30]
[354445083,1740501048948,-150.29,0.0004521,2]
[354445085,1740501048960,-500.0,0.00045286,2]
[354445087,1740501048969,-250.0,0.00045321,10]
[354445089,1740501048979,-1000.0,0.00045352,10]
[354445091,1740501048991,-1000.0,0.00045352,10]
[354445093,1740501049001,-1000.0,0.00045352,10]
[354445095,1740501049012,-1000.0,0.00045352,10]
[354445097,1740501049022,-1000.0,0.00045352,10]
[354445099,1740501049031,-1000.0,0.00045352,10]
[354445101,1740501049041,-1000.0,0.00045352,10]
[354445103,1740501049051,-1000.0,0.00045352,10]
[354445105,1740501049061,-1500.0,0.00045378,2]